[Event "IND-ch Women 2019"]
[Site "Karaikkudi"]
[Date "2019.07.20"]
[Round "3.13"]
[White "Shah, Vishwa"]
[Black "Mahalakshmi D M"]
[Result "0-1"]
[ECO "B12"]
[WhiteElo "1734"]
[BlackElo "1145"]
[Annotator "NA"]
[PlyCount "98"]
[EventDate "2019.07.19"]
[EventType "swiss"]
[EventCountry "IND"]
[SourceTitle "playchess.com"]
[Source "ChessBase"]
[SourceQuality "1"]
[TimeControl "40/5400+30:1800+30"]

1. e4 {[%emt 0:00:00]} c6 {[%emt 0:00:00]} 2. d4 {[%emt 0:00:00]} d5 {[%emt 0:00:00]} 3. e5 {[%emt 0:00:00]} c5 {[%emt 0:00:00]} 4. dxc5 {[%emt 0:00:00]} e6 {[%emt 0:00:36]} 5. a3 {[%emt 0:00:00]} Bxc5 {[%emt 0:01:51]} 6. b4 {[%emt 0:00:48]} Bb6 {[%emt 0:00:14]} 7. Nf3 {[%emt 0:00:23]} Ne7 {[%emt 0:01:01]} 8. Bd3 {[%emt 0:00:26]} Ng6 {[%emt 0:01:22]} 9. O-O {[%emt 0:05:14]} Qc7 {[%emt 0:01:25]} 10. Bb2 {[%emt 0:01:48]} Nf4 {[%emt 0:03:05]} 11. Re1 {[%emt 0:02:57]} Nxd3 {[%emt 0:00:22]} 12. Qxd3 {[%emt 0:01:08]} Nc6 {[%emt 0:00:53]} 13. Nbd2 {[%emt 0:01:34]} Qd8 {[%emt 0:05:41]} 14. c4 {[%emt 0:15:03]} O-O {[%emt 0:02:17]} 15. c5 {[%emt 0:11:21]} Bc7 {[%emt 0:00:08]} 16. Nb3 {[%emt 0:00:24]} Bd7 {[%emt 0:01:26]} 17. b5 {[%emt 0:12:02]} Na5 {[%emt 0:01:52]} 18. Nxa5 {[%emt 0:00:09]} Bxa5 {[%emt 0:00:01]} 19. Re3 {[%emt 0:01:27]} a6 {[%emt 0:05:13]} 20. b6 {[%emt 0:07:05]} Rc8 {[%emt 0:04:25]} 21. Bd4 {[%emt 0:01:13]} Qe7 {[%emt 0:02:46]} 22. Rb1 {[%emt 0:09:15]} h6 {[%emt 0:03:20]} 23. Qc2 {[%emt 0:08:51]} Bb5 {[%emt 0:03:48]} 24. Qb2 {[%emt 0:04:12]} Rxc5 {[%emt 0:04:41]} 25. Bxc5 {[%emt 0:00:05]} Qxc5 {[%emt 0:00:02]} 26. Nd4 {[%emt 0:00:12]} Ba4 {[%emt 0:11:44]} 27. Nb3 {[%emt 0:01:25]} Qxb6 {[%emt 0:02:18]} 28. Nxa5 {[%emt 0:00:06]} Qxa5 {[%emt 0:00:02]} 29. Qb4 {[%emt 0:07:17]} Qxb4 {[%emt 0:01:01]} 30. Rxb4 {[%emt 0:00:13]} Rc8 {[%emt 0:00:17]} 31. Re1 {[%emt 0:05:03]} b5 {[%emt 0:03:28]} 32. Kf1 {[%emt 0:01:33]} a5 {[%emt 0:03:55]} 33. Rd4 {[%emt 0:00:07]} Bb3 {[%emt 0:00:30]} 34. Rb1 {[%emt 0:01:41]} Rc3 {[%emt 0:01:54]} 35. Ke1 {[%emt 0:00:13]} f6 {[%emt 0:02:28]} 36. Kd2 {[%emt 0:02:00]} Rc2+ {[%emt 0:00:44]} 37. Kd3 {[%emt 0:00:11]} a4 {[%emt 0:01:55]} 38. exf6 {[%emt 0:01:03]} gxf6 {[%emt 0:00:32]} 39. Ke3 {[%emt 0:00:25]} Bc4 {[%emt 0:01:50]} 40. Ra1 {[%emt 0:00:00]} e5 {[%emt 0:00:00]} 41. Rg4+ {[%emt 0:03:21]} Kf7 {[%emt 0:02:32]} 42. f4 {[%emt 0:00:44]} f5 {[%emt 0:07:25]} 43. Rh4 {[%emt 0:00:50]} d4+ {[%emt 0:00:05]} 44. Kf3 {[%emt 0:00:11]} e4+ {[%emt 0:00:04]} 45. Kg3 {[%emt 0:00:08]} Rc3+ {[%emt 0:00:12]} 46. Kf2 {[%emt 0:00:10]} e3+ {[%emt 0:00:07]} 47. Ke1 {[%emt 0:00:14]} d3 {[%emt 0:00:07]} 48. Rh3 {[%emt 0:00:48]} d2+ {[%emt 0:00:26]} 49. Kd1 {[%emt 0:00:02]} Bb3+ {[%emt 0:00:17]} 0-1

[Event "IND-ch Women 2019"]
[Site "Karaikkudi"]
[Date "2019.07.20"]
[Round "3.14"]
[White "Priyanka, Kumari"]
[Black "ThamaraiSelvi, P."]
[Result "1-0"]
[ECO "B42"]
[WhiteElo "1991"]
[BlackElo "1752"]
[Annotator "NA"]
[PlyCount "59"]
[EventDate "2019.07.19"]
[EventType "swiss"]
[EventCountry "IND"]
[SourceTitle "playchess.com"]
[Source "ChessBase"]
[SourceQuality "1"]
[TimeControl "40/5400+30:1800+30"]

1. e4 {[%emt 0:00:06]} c5 {[%emt 0:00:00]} 2. Nf3 {[%emt 0:00:30]} e6 {[%emt 0:00:00]} 3. d4 {[%emt 0:00:10]} cxd4 {[%emt 0:00:00]} 4. Nxd4 {[%emt 0:00:03]} a6 {[%emt 0:00:00]} 5. Bd3 {[%emt 0:00:18]} Nc6 {[%emt 0:01:43]} 6. Nxc6 {[%emt 0:00:25]} dxc6 {[%emt 0:00:28]} 7. Nd2 {[%emt 0:01:19]} e5 {[%emt 0:05:09]} 8. Nc4 {[%emt 0:01:24]} Nf6 {[%emt 0:01:09]} 9. O-O {[%emt 0:05:57]} Qc7 {[%emt 0:02:20]} 10. a4 {[%emt 0:00:58]} Be6 {[%emt 0:06:48]} 11. Qe2 {[%emt 0:01:49]} Bc5 {[%emt 0:06:36]} 12. Bg5 {[%emt 0:19:27]} Nd7 {[%emt 0:02:43]} 13. c3 {[%emt 0:04:30]} f6 {[%emt 0:05:45]} 14. Be3 {[%emt 0:02:34]} O-O {[%emt 0:03:06]} 15. b4 {[%emt 0:03:01]} Bxe3 {[%emt 0:01:51]} 16. Nxe3 {[%emt 0:00:35]} b5 {[%emt 0:09:10]} 17. c4 {[%emt 0:05:07]} a5 {[%emt 0:17:18]} 18. cxb5 {[%emt 0:05:15]} axb4 {[%emt 0:01:45]} 19. Bc4 {[%emt 0:01:23]} Bf7 {[%emt 0:05:14]} 20. Rfc1 {[%emt 0:13:59]} c5 {[%emt 0:04:32]} 21. Nd5 {[%emt 0:03:12]} Qd8 {[%emt 0:03:22]} 22. Rd1 {[%emt 0:07:42]} Kh8 {[%emt 0:00:29]} 23. Ne3 {[%emt 0:02:36]} Qc7 {[%emt 0:10:06]} 24. a5 {[%emt 0:01:23]} Rxa5 {[%emt 0:07:41]} 25. Rxa5 {[%emt 0:00:47]} Qxa5 {[%emt 0:00:04]} 26. Rxd7 {[%emt 0:00:20]} b3 {[%emt 0:02:44]} 27. Bxf7 {[%emt 0:02:41]} Qa1+ {[%emt 0:01:24]} 28. Rd1 {[%emt 0:00:29]} b2 {[%emt 0:00:35]} 29. Qe1 {[%emt 0:00:37]} Ra8 {[%emt 0:00:21]} 30. Rb1 {[%emt 0:01:15]} 1-0

[Event "IND-ch Women 2019"]
[Site "Karaikkudi"]
[Date "2019.07.20"]
[Round "3.15"]
[White "Dhyana Patel"]
[Black "Varshini, V."]
[Result "1/2-1/2"]
[ECO "B53"]
[WhiteElo "1900"]
[BlackElo "2087"]
[Annotator "NA"]
[PlyCount "61"]
[EventDate "2019.07.19"]
[EventType "swiss"]
[EventCountry "IND"]
[SourceTitle "playchess.com"]
[Source "ChessBase"]
[SourceQuality "1"]
[TimeControl "40/5400+30:1800+30"]

1. e4 {[%emt 0:00:00]} c5 {[%emt 0:00:00]} 2. Nf3 {[%emt 0:00:04]} d6 {[%emt 0:00:00]} 3. d4 {[%emt 0:00:04]} cxd4 {[%emt 0:00:00]} 4. Qxd4 {[%emt 0:00:07]} Nc6 {[%emt 0:00:00]} 5. Bb5 {[%emt 0:00:05]} Bd7 {[%emt 0:00:28]} 6. Bxc6 {[%emt 0:00:06]} Bxc6 {[%emt 0:00:05]} 7. Nc3 {[%emt 0:00:06]} Nf6 {[%emt 0:00:16]} 8. Bg5 {[%emt 0:00:16]} e6 {[%emt 0:00:18]} 9. O-O-O {[%emt 0:00:20]} Be7 {[%emt 0:00:08]} 10. Qd3 {[%emt 0:00:18]} O-O {[%emt 0:00:34]} 11. Nd4 {[%emt 0:00:11]} Rc8 {[%emt 0:11:13]} 12. f4 {[%emt 0:01:07]} Qb6 {[%emt 0:12:17]} 13. h4 {[%emt 0:01:47]} Rfe8 {[%emt 0:02:48]} 14. f5 {[%emt 0:00:43]} e5 {[%emt 0:16:28]} 15. Bxf6 {[%emt 0:01:24]} Bxf6 {[%emt 0:03:22]} 16. Nxc6 {[%emt 0:02:09]} bxc6 {[%emt 0:00:27]} 17. g4 {[%emt 0:02:52]} Rb8 {[%emt 0:08:52]} 18. b3 {[%emt 0:00:17]} Qa5 {[%emt 0:03:11]} 19. g5 {[%emt 0:00:57]} Bd8 {[%emt 0:01:00]} 20. f6 {[%emt 0:04:49]} Bb6 {[%emt 0:04:37]} 21. Na4 {[%emt 0:01:39]} d5 {[%emt 0:05:21]} 22. h5 {[%emt 0:08:59]} Qb4 {[%emt 0:16:45]} 23. g6 {[%emt 0:05:29]} Bd8 {[%emt 0:05:57]} 24. exd5 {[%emt 0:11:02]} e4 {[%emt 0:02:41]} 25. gxf7+ {[%emt 0:02:54]} Kxf7 {[%emt 0:00:03]} 26. Qc3 {[%emt 0:05:07]} Qxc3 {[%emt 0:02:26]} 27. Nxc3 {[%emt 0:00:01]} Bxf6 {[%emt 0:00:12]} 28. Ne2 {[%emt 0:00:12]} Bg5+ {[%emt 0:02:29]} 29. Kb2 {[%emt 0:00:27]} cxd5 {[%emt 0:01:21]} 30. Rxd5 {[%emt 0:00:10]} h6 {[%emt 0:01:41]} 31. c4 {[%emt 0:00:43]} 1/2-1/2

[Event "IND-ch Women 2019"]
[Site "Karaikkudi"]
[Date "2019.07.20"]
[Round "3.16"]
[White "Mrudul Dehankar"]
[Black "Shetye, Siddhali"]
[Result "1-0"]
[ECO "C78"]
[WhiteElo "2074"]
[BlackElo "1837"]
[Annotator "NA"]
[PlyCount "57"]
[EventDate "2019.07.19"]
[EventType "swiss"]
[EventCountry "IND"]
[SourceTitle "playchess.com"]
[Source "ChessBase"]
[SourceQuality "1"]
[TimeControl "40/5400+30:1800+30"]

1. e4 {[%emt 0:00:00]} e5 {[%emt 0:00:00]} 2. Nf3 {[%emt 0:00:00]} Nc6 {[%emt 0:00:00]} 3. Bb5 {[%emt 0:00:03]} a6 {[%emt 0:00:06]} 4. Ba4 {[%emt 0:00:07]} Nf6 {[%emt 0:00:09]} 5. O-O {[%emt 0:00:06]} b5 {[%emt 0:02:53]} 6. Bb3 {[%emt 0:00:07]} Bc5 {[%emt 0:00:08]} 7. d3 {[%emt 0:01:50]} d6 {[%emt 0:02:43]} 8. a4 {[%emt 0:09:46]} Rb8 {[%emt 0:02:54]} 9. c3 {[%emt 0:02:29]} Bb6 {[%emt 0:06:01]} 10. Nbd2 {[%emt 0:11:18]} O-O {[%emt 0:03:10]} 11. h3 {[%emt 0:02:30]} h6 {[%emt 0:01:25]} 12. Re1 {[%emt 0:01:37]} Re8 {[%emt 0:03:26]} 13. Nf1 {[%emt 0:04:34]} Ne7 {[%emt 0:03:44]} 14. Nh4 {[%emt 0:03:08]} Be6 {[%emt 0:37:36]} 15. Bc2 {[%emt 0:11:33]} Ng6 {[%emt 0:12:32]} 16. Nxg6 {[%emt 0:20:38]} fxg6 {[%emt 0:00:02]} 17. d4 {[%emt 0:05:18]} Nh5 {[%emt 0:07:53]} 18. Be3 {[%emt 0:09:47]} Rf8 {[%emt 0:04:19]} 19. Bb3 {[%emt 0:03:30]} Bxb3 {[%emt 0:02:31]} 20. Qxb3+ {[%emt 0:00:02]} Kh7 {[%emt 0:00:13]} 21. axb5 {[%emt 0:03:21]} axb5 {[%emt 0:00:10]} 22. Qd1 {[%emt 0:03:45]} Nf4 {[%emt 0:03:22]} 23. Bxf4 {[%emt 0:05:16]} Rxf4 {[%emt 0:00:42]} 24. Re2 {[%emt 0:00:36]} exd4 {[%emt 0:01:46]} 25. cxd4 Qf6 {[%emt 0:02:18]} 26. g3 {[%emt 0:00:57]} Rf3 {[%emt 0:01:41]} 27. Nh2 {[%emt 0:00:22]} Rxf2 {[%emt 0:00:55]} 28. Ng4 {[%emt 0:01:20]} h5 {[%emt 0:01:21]} 29. Nh2 {[%emt 0:00:30]} 1-0

[Event "IND-ch Women 2019"]
[Site "Karaikkudi"]
[Date "2019.07.20"]
[Round "3.17"]
[White "Senthamizh Yazhini S"]
[Black "Srija, Seshadri"]
[Result "0-1"]
[ECO "C45"]
[WhiteElo "1622"]
[BlackElo "2306"]
[Annotator "NA"]
[PlyCount "84"]
[EventDate "2019.07.19"]
[EventType "swiss"]
[EventCountry "IND"]
[SourceTitle "playchess.com"]
[Source "ChessBase"]
[SourceQuality "1"]
[TimeControl "40/5400+30:1800+30"]

1. e4 {[%emt 0:00:00]} e5 {[%emt 0:00:00]} 2. Nf3 {[%emt 0:00:00]} Nc6 {[%emt 0:00:00]} 3. d4 {[%emt 0:00:00]} exd4 {[%emt 0:00:11]} 4. Nxd4 {[%emt 0:00:00]} Nf6 {[%emt 0:01:02]} 5. Nxc6 {[%emt 0:00:07]} bxc6 {[%emt 0:00:08]} 6. Bd3 {[%emt 0:00:31]} d5 {[%emt 0:02:49]} 7. exd5 {[%emt 0:00:31]} cxd5 {[%emt 0:00:08]} 8. O-O {[%emt 0:00:28]} Be7 {[%emt 0:00:50]} 9. Re1 {[%emt 0:03:33]} O-O {[%emt 0:00:32]} 10. Nd2 {[%emt 0:01:58]} Rb8 {[%emt 0:10:27]} 11. c4 {[%emt 0:02:41]} Be6 $11 {[%emt 0:06:36]} 12. Qc2 {[%emt 0:01:55]} Bb4 {[%emt 0:08:42]} 13. Rd1 {[%emt 0:18:57]} Qe7 {[%emt 0:07:59]} 14. Nb3 {[%emt 0:04:03]} dxc4 {[%emt 0:13:40]} 15. Bxc4 {[%emt 0:00:39]} Ng4 {[%emt 0:01:08]} 16. h3 {[%emt 0:06:36]} Nxf2 {[%emt 0:01:58]} 17. Kxf2 {[%emt 0:12:45]} Qh4+ {[%emt 0:00:10]} 18. g3 {[%emt 0:00:40]} Qxh3 {[%emt 0:04:49]} 19. Bf1 {[%emt 0:10:56]} Qh2+ {[%emt 0:08:27]} 20. Bg2 {[%emt 0:00:35]} Bd6 {[%emt 0:00:41]} 21. Qd3 {[%emt 0:04:39]} Bh3 {[%emt 0:03:43]} 22. Rg1 {[%emt 0:05:28]} Rfe8 {[%emt 0:02:31]} 23. Bd2 {[%emt 0:09:29]} Re6 {[%emt 0:02:42]} 24. Bc3 {[%emt 0:05:37]} Rg6 {[%emt 0:00:21]} 25. g4 {[%emt 0:02:58]} Bxg4 {[%emt 0:01:58]} 26. Rae1 {[%emt 0:02:37]} Bd7 {[%emt 0:01:48]} 27. Re3 {[%emt 0:01:35]} Bc6 {[%emt 0:01:44]} 28. Rf3 {[%emt 0:01:19]} Qh4+ {[%emt 0:01:35]} 29. Ke3 {[%emt 0:00:58]} Bxf3 {[%emt 0:00:11]} 30. Bxf3 {[%emt 0:02:10]} Rxg1 {[%emt 0:00:08]} 31. Qd4 {[%emt 0:00:48]} Qg5+ {[%emt 0:02:03]} 32. Kd3 {[%emt 0:00:36]} Qg3 {[%emt 0:01:33]} 33. Nd2 {[%emt 0:00:19]} Bf4 {[%emt 0:01:03]} 34. b4 {[%emt 0:00:39]} Bxd2 {[%emt 0:01:44]} 35. Kxd2 {[%emt 0:00:09]} Qe1+ {[%emt 0:01:11]} 36. Kd3 {[%emt 0:00:25]} Qb1+ {[%emt 0:00:42]} 37. Ke3 {[%emt 0:00:42]} Re8+ {[%emt 0:00:43]} 38. Kd2 {[%emt 0:00:20]} Qxa2+ {[%emt 0:00:34]} 39. Kd3 {[%emt 0:00:06]} Rg3 {[%emt 0:00:17]} 40. Qd7 {[%emt 0:00:00]} Rxf3+ {[%emt 0:00:00]} 41. Kd4 {[%emt 0:00:58]} Rf4+ {[%emt 0:00:33]} 42. Kc5 {[%emt 0:00:16]} Qc4# {[%emt 0:12:00] Kd4} 0-1

[Event "IND-ch Women 2019"]
[Site "Karaikkudi"]
[Date "2019.07.20"]
[Round "3.18"]
[White "Mudaliar Nandini"]
[Black "Priyanka Nutakki"]
[Result "0-1"]
[ECO "C01"]
[WhiteElo "1609"]
[BlackElo "2293"]
[Annotator "NA"]
[PlyCount "70"]
[EventDate "2019.07.19"]
[EventType "swiss"]
[EventCountry "IND"]
[SourceTitle "playchess.com"]
[Source "ChessBase"]
[SourceQuality "1"]
[TimeControl "40/5400+30:1800+30"]

1. e4 {[%emt 0:01:39]} e6 {[%emt 0:00:00]} 2. Nc3 {[%emt 0:00:59]} d5 {[%emt 0:00:00]} 3. Nf3 {[%emt 0:00:35]} Nf6 {[%emt 0:02:27]} 4. exd5 {[%emt 0:02:19]} exd5 {[%emt 0:00:07]} 5. d4 {[%emt 0:00:17]} Bb4 {[%emt 0:00:36]} 6. Bd2 {[%emt 0:05:13]} O-O {[%emt 0:01:02]} 7. Be2 {[%emt 0:00:25]} c6 {[%emt 0:03:16]} 8. a3 {[%emt 0:01:45]} Bd6 {[%emt 0:00:14]} 9. Bg5 {[%emt 0:00:19]} Nbd7 $11 {[%emt 0:01:51]} 10. O-O {[%emt 0:00:26]} Qc7 {[%emt 0:01:06]} 11. Bd3 {[%emt 0:04:33]} h6 {[%emt 0:04:38]} 12. Bh4 {[%emt 0:02:20]} a5 {[%emt 0:00:55]} 13. Re1 {[%emt 0:01:21]} b5 {[%emt 0:02:19]} 14. Re2 {[%emt 0:06:51]} Bb7 {[%emt 0:02:50]} 15. Bxf6 {[%emt 0:15:06]} Nxf6 {[%emt 0:00:07]} 16. Ne5 {[%emt 0:00:11]} b4 {[%emt 0:01:42]} 17. axb4 {[%emt 0:02:45]} axb4 {[%emt 0:00:06]} 18. Na4 {[%emt 0:00:25]} Ra5 {[%emt 0:06:35]} 19. b3 {[%emt 0:00:48]} c5 {[%emt 0:07:27]} 20. Bf5 {[%emt 0:07:54]} g6 {[%emt 0:12:16]} 21. Bh3 {[%emt 0:00:32]} Rfa8 {[%emt 0:05:16]} 22. Rc1 {[%emt 0:03:20]} Ne4 {[%emt 0:00:23]} 23. f3 {[%emt 0:07:48]} Ng5 {[%emt 0:12:17]} 24. Ng4 {[%emt 0:04:46]} Kg7 {[%emt 0:04:22]} 25. dxc5 {[%emt 0:03:41]} Bxc5+ {[%emt 0:00:04]} 26. Nxc5 {[%emt 0:01:27]} Qxc5+ {[%emt 0:00:02]} 27. Kh1 {[%emt 0:01:58]} Nxh3 {[%emt 0:00:24]} 28. gxh3 {[%emt 0:00:08]} d4 {[%emt 0:01:21]} 29. Kg2 {[%emt 0:04:13]} h5 {[%emt 0:04:16]} 30. Re5 {[%emt 0:06:16]} Qd6 {[%emt 0:07:07]} 31. Rxa5 {[%emt 0:01:11]} Rxa5 {[%emt 0:01:04]} 32. Nf2 {[%emt 0:00:56]} Rg5+ {[%emt 0:00:09]} 33. Kh1 {[%emt 0:00:12]} Qf4 {[%emt 0:00:08]} 34. Ne4 {[%emt 0:03:17]} Qxe4 {[%emt 0:00:06]} 35. fxe4 {[%emt 0:00:10]} Bxe4+ {[%emt 0:00:04]} 0-1

[Event "IND-ch Women 2019"]
[Site "Karaikkudi"]
[Date "2019.07.20"]
[Round "3.19"]
[White "Pratyusha, Bodda"]
[Black "Panda Miracle"]
[Result "1-0"]
[ECO "E43"]
[WhiteElo "2265"]
[BlackElo "1605"]
[Annotator "NA"]
[PlyCount "83"]
[EventDate "2019.07.19"]
[EventType "swiss"]
[EventCountry "IND"]
[SourceTitle "playchess.com"]
[Source "ChessBase"]
[SourceQuality "1"]
[TimeControl "40/5400+30:1800+30"]

1. d4 {[%emt 0:00:00]} Nf6 {[%emt 0:00:25]} 2. c4 {[%emt 0:00:00]} e6 {[%emt 0:00:45]} 3. Nc3 {[%emt 0:00:00]} Bb4 {[%emt 0:00:07]} 4. e3 {[%emt 0:00:00]} b6 {[%emt 0:00:26]} 5. Nf3 {[%emt 0:00:28]} Bb7 {[%emt 0:00:18]} 6. Bd3 {[%emt 0:00:10]} O-O {[%emt 0:00:15]} 7. Bd2 {[%emt 0:00:10]} c5 {[%emt 0:02:53]} 8. a3 {[%emt 0:00:30]} Ba5 {[%emt 0:07:55]} 9. O-O {[%emt 0:00:51]} d5 {[%emt 0:02:48]} 10. cxd5 {[%emt 0:01:20]} Nxd5 {[%emt 0:16:11]} 11. Nxd5 {[%emt 0:07:22]} Bxd2 {[%emt 0:00:33]} 12. Nf4 {[%emt 0:00:17]} Ba5 {[%emt 0:15:13]} 13. Qb1 {[%emt 0:01:42]} Bxf3 {[%emt 0:10:50]} 14. gxf3 {[%emt 0:00:24]} Nc6 {[%emt 0:08:59]} 15. Bxh7+ {[%emt 0:01:02]} Kh8 {[%emt 0:00:22]} 16. Be4 {[%emt 0:00:08]} Rc8 {[%emt 0:04:00]} 17. Bxc6 {[%emt 0:00:47]} Rxc6 {[%emt 0:01:03]} 18. b4 {[%emt 0:00:20]} e5 {[%emt 0:01:05]} 19. dxe5 {[%emt 0:02:09]} Rh6 {[%emt 0:02:52]} 20. Rd1 {[%emt 0:05:52]} Qg5+ {[%emt 0:00:13]} 21. Kf1 {[%emt 0:00:11]} Rxh2 {[%emt 0:00:30]} 22. Ke2 {[%emt 0:01:20]} Qh4 {[%emt 0:00:40]} 23. Rf1 {[%emt 0:00:36]} g5 {[%emt 0:01:59]} 24. Nd5 {[%emt 0:02:21]} Qc4+ {[%emt 0:04:18]} 25. Qd3 {[%emt 0:01:23]} Qxd3+ {[%emt 0:00:05]} 26. Kxd3 {[%emt 0:00:03]} Rd8 {[%emt 0:00:18]} 27. Ke4 {[%emt 0:00:32]} Rh4+ {[%emt 0:00:27]} 28. f4 {[%emt 0:00:17]} gxf4 {[%emt 0:00:57]} 29. Rh1 {[%emt 0:00:26]} Rxh1 {[%emt 0:00:42]} 30. Rxh1+ {[%emt 0:00:03]} Kg7 {[%emt 0:00:21]} 31. bxa5 {[%emt 0:00:04]} bxa5 {[%emt 0:00:52]} 32. exf4 {[%emt 0:00:11]} Rh8 {[%emt 0:02:47]} 33. Rxh8 {[%emt 0:00:07]} Kxh8 {[%emt 0:00:01]} 34. f5 {[%emt 0:00:05]} Kg7 {[%emt 0:00:44]} 35. e6 {[%emt 0:00:03]} f6 {[%emt 0:01:04]} 36. Nc7 {[%emt 0:00:19]} Kf8 {[%emt 0:00:26]} 37. Kd5 {[%emt 0:00:03]} Ke7 {[%emt 0:00:06]} 38. Kxc5 {[%emt 0:00:03]} a4 {[%emt 0:00:13]} 39. Nd5+ {[%emt 0:00:02]} Kf8 {[%emt 0:00:19]} 40. Nxf6 {[%emt 0:00:00]} Ke7 {[%emt 0:00:00]} 41. Nd5+ {[%emt 0:00:06]} Ke8 {[%emt 0:00:42]} 42. f6 {[%emt 0:00:02]} 1-0

[Event "IND-ch Women 2019"]
[Site "Karaikkudi"]
[Date "2019.07.20"]
[Round "3.20"]
[White "Aishwarya"]
[Black "Swati Ghate"]
[Result "0-1"]
[ECO "B46"]
[WhiteElo "1607"]
[BlackElo "2192"]
[Annotator "NA"]
[PlyCount "104"]
[EventDate "2019.07.19"]
[EventType "swiss"]
[EventCountry "IND"]
[SourceTitle "playchess.com"]
[Source "ChessBase"]
[SourceQuality "1"]
[TimeControl "40/5400+30:1800+30"]

1. e4 {[%emt 0:00:00]} c5 {[%emt 0:01:35]} 2. Nf3 {[%emt 0:00:00]} e6 {[%emt 0:00:09]} 3. d4 {[%emt 0:00:00]} cxd4 {[%emt 0:00:12]} 4. Nxd4 {[%emt 0:00:05]} Nc6 {[%emt 0:00:11]} 5. Nc3 {[%emt 0:00:40]} Qc7 {[%emt 0:00:11]} 6. a3 {[%emt 0:01:47]} a6 {[%emt 0:03:21]} 7. g3 {[%emt 0:01:24]} Nf6 {[%emt 0:03:07]} 8. Bg2 {[%emt 0:00:26]} Be7 {[%emt 0:04:54]} 9. Be3 {[%emt 0:01:23]} d6 {[%emt 0:01:55]} 10. O-O {[%emt 0:00:41]} Bd7 {[%emt 0:02:28]} 11. Nb3 {[%emt 0:01:25]} Ne5 {[%emt 0:05:20]} 12. Nd2 {[%emt 0:08:52]} Neg4 {[%emt 0:14:55]} 13. Bg5 {[%emt 0:02:01]} h6 {[%emt 0:00:27]} 14. Bxf6 {[%emt 0:00:26]} Nxf6 {[%emt 0:00:10]} 15. Re1 {[%emt 0:01:50]} O-O {[%emt 0:00:55]} 16. Qe2 {[%emt 0:04:16]} Rac8 {[%emt 0:03:45]} 17. Rad1 {[%emt 0:01:43]} Rfd8 {[%emt 0:03:45]} 18. Nf3 {[%emt 0:01:50]} Be8 {[%emt 0:08:13]} 19. Rd2 {[%emt 0:01:31]} b5 {[%emt 0:02:51]} 20. Nd4 {[%emt 0:05:24]} Nd7 {[%emt 0:03:17]} 21. Ndxb5 {[%emt 0:08:09]} axb5 {[%emt 0:00:28]} 22. Nxb5 {[%emt 0:00:04]} Qb6 {[%emt 0:03:21]} 23. b3 {[%emt 0:03:55]} Nc5 {[%emt 0:03:09]} 24. Nd4 {[%emt 0:00:34]} Bg5 {[%emt 0:02:48]} 25. Rdd1 {[%emt 0:01:34]} Bf6 {[%emt 0:03:08]} 26. Qd2 {[%emt 0:04:48]} Na6 {[%emt 0:11:41]} 27. Re2 {[%emt 0:01:42]} Qc5 {[%emt 0:01:19]} 28. a4 {[%emt 0:05:21]} Nb4 {[%emt 0:03:17]} 29. c4 {[%emt 0:00:15]} Bxd4 {[%emt 0:00:57]} 30. Qxd4 {[%emt 0:00:10]} Qxd4 {[%emt 0:00:04]} 31. Rxd4 {[%emt 0:00:11]} e5 {[%emt 0:00:06]} 32. Rd1 {[%emt 0:00:41]} Nc6 {[%emt 0:00:14]} 33. Rb2 {[%emt 0:05:02]} Rb8 {[%emt 0:01:49]} 34. Ra1 {[%emt 0:01:44]} Rb4 {[%emt 0:01:30]} 35. a5 {[%emt 0:00:43]} Ra8 {[%emt 0:00:20]} 36. a6 {[%emt 0:01:14]} Nd4 {[%emt 0:01:00]} 37. Ra3 {[%emt 0:09:43]} Bc6 {[%emt 0:01:03]} 38. f3 {[%emt 0:00:39]} Rb6 {[%emt 0:01:25]} 39. a7 {[%emt 0:03:03]} Rb7 {[%emt 0:00:08]} 40. Rba2 {[%emt 0:00:00]} Rxb3 {[%emt 0:00:00]} 41. Ra6 {[%emt 0:07:50]} Kf8 {[%emt 0:02:54]} 42. f4 {[%emt 0:00:36]} f6 {[%emt 0:00:53]} 43. Bh3 {[%emt 0:02:13]} Ke7 {[%emt 0:00:15]} 44. fxe5 {[%emt 0:01:11]} fxe5 {[%emt 0:00:41]} 45. Kf2 {[%emt 0:02:49]} Bxe4 {[%emt 0:03:56]} 46. Bg2 {[%emt 0:00:34]} Rf8+ {[%emt 0:01:18]} 47. Ke1 {[%emt 0:00:01]} Bxg2 {[%emt 0:00:52]} 48. Rxg2 {[%emt 0:01:14]} Rb1+ {[%emt 0:00:59]} 49. Kd2 {[%emt 0:00:11]} Rb2+ {[%emt 0:00:27]} 50. Kc3 {[%emt 0:00:14]} Rxg2 {[%emt 0:00:15]} 51. a8=Q {[%emt 0:00:21]} Rxa8 {[%emt 0:00:06]} 52. Rxa8 {[%emt 0:00:06]} Rxh2 {[%emt 0:01:05]} 0-1

[Event "IND-ch Women 2019"]
[Site "Karaikkudi"]
[Date "2019.07.20"]
[Round "3.21"]
[White "Sharma Isha"]
[Black "Renganayaki V"]
[Result "1-0"]
[ECO "B27"]
[WhiteElo "2188"]
[BlackElo "1583"]
[Annotator "NA"]
[PlyCount "72"]
[EventDate "2019.07.19"]
[EventType "swiss"]
[EventCountry "IND"]
[SourceTitle "playchess.com"]
[Source "ChessBase"]
[SourceQuality "1"]
[TimeControl "40/5400+30:1800+30"]

1. e4 {[%emt 0:00:00]} c5 {[%emt 0:00:18]} 2. Nf3 {[%emt 0:00:00]} g6 {[%emt 0:00:05]} 3. c3 {[%emt 0:00:00]} Bg7 {[%emt 0:00:36]} 4. d4 {[%emt 0:00:00]} cxd4 {[%emt 0:00:05]} 5. cxd4 {[%emt 0:00:00]} d5 {[%emt 0:00:07]} 6. e5 {[%emt 0:00:00]} Bg4 {[%emt 0:00:07]} 7. Bb5+ {[%emt 0:00:24]} Nd7 {[%emt 0:00:06]} 8. Nc3 {[%emt 0:03:25]} e6 {[%emt 0:01:07]} 9. h3 {[%emt 0:00:17]} Bxf3 {[%emt 0:00:52]} 10. Qxf3 {[%emt 0:00:06]} Ne7 {[%emt 0:00:58]} 11. O-O {[%emt 0:02:32]} Nf5 {[%emt 0:01:49]} 12. Rd1 {[%emt 0:01:17]} O-O {[%emt 0:01:06]} 13. g4 {[%emt 0:03:50]} Nxd4 {[%emt 0:14:37]} 14. Rxd4 {[%emt 0:00:08]} Nxe5 {[%emt 0:00:03]} 15. Qg3 {[%emt 0:00:11]} Nf3+ {[%emt 0:00:52]} 16. Qxf3 {[%emt 0:00:06]} Bxd4 {[%emt 0:00:03]} 17. Bh6 {[%emt 0:00:49]} Bg7 {[%emt 0:00:07]} 18. Bxg7 {[%emt 0:00:33]} Kxg7 {[%emt 0:00:05]} 19. Rd1 {[%emt 0:02:10]} a6 {[%emt 0:04:26]} 20. Bf1 {[%emt 0:01:19]} Qf6 {[%emt 0:04:27]} 21. Qe3 {[%emt 0:00:40]} h6 {[%emt 0:03:24]} 22. f4 {[%emt 0:00:09]} Rad8 {[%emt 0:07:57]} 23. g5 {[%emt 0:00:47]} hxg5 {[%emt 0:07:37]} 24. fxg5 {[%emt 0:00:04]} Qf5 {[%emt 0:04:58]} 25. Rd4 {[%emt 0:14:33]} f6 {[%emt 0:25:32]} 26. gxf6+ {[%emt 0:04:02]} Qxf6 {[%emt 0:00:26]} 27. Bg2 {[%emt 0:00:29]} Rf7 {[%emt 0:07:02]} 28. a3 {[%emt 0:05:59]} Rdf8 {[%emt 0:02:58]} 29. Rd2 {[%emt 0:01:11]} Qf4 {[%emt 0:09:10]} 30. Qe1 {[%emt 0:00:13]} d4 {[%emt 0:02:39]} 31. Ne4 {[%emt 0:00:46]} Qe3+ {[%emt 0:01:17]} 32. Qxe3 {[%emt 0:00:10]} dxe3 {[%emt 0:00:01]} 33. Re2 {[%emt 0:00:07]} Rc8 {[%emt 0:00:54]} 34. Rxe3 {[%emt 0:00:25]} Rc2 {[%emt 0:00:17]} 35. b4 {[%emt 0:00:09]} Rd7 {[%emt 0:00:49]} 36. Kh2 {[%emt 0:01:04]} b6 {[%emt 0:01:03]} 1-0